[Event "IX Famalicao Open 2022"]
[Site "Vila Nova de Famalicao"]
[Date "2022.07.25"]
[Round "1.10"]
[White "Bento, David"]
[Black "Umetsubo, Cesar Hidemitsu"]
[Result "0-1"]
[ECO "B20"]
[WhiteElo "1296"]
[BlackElo "2405"]
[Annotator "TA"]
[PlyCount "94"]
[EventDate "2022.07.25"]
[EventType "tourn"]
[EventCountry "POR"]
[SourceTitle "playchess.com"]
[Source "ChessBase"]
[SourceQuality "1"]
[TimeControl "5400+30"]

{[%evp 19,94,-12,-10,-20,-26,-65,-51,-116,-114,-156,-160,-166,-96,-92,-93,-127,-90,-101,-102,-112,-116,-122,-93,-182,-170,-183,-187,-177,-185,-210,-189,-250,-244,-239,-257,-243,-167,-167,-167,-176,-170,-193,-201,-232,-245,-301,-301,-301,-301,-301,-301,-301,-291,-291,-280,-287,-270,-841,-827,-1520,-1482,-1504,-1175,-1591,-1213,-1964,-1238,-929,-1029,-1707,-1602,-29985,-29986,-29986,-29987,-29988,-29983]} 1. e4 {[%emt 0:00:03]} c5 {[%emt 0:00:33]} 2. c4 {[%emt 0:00:57]} Nc6 {[%emt 0:00:53]} 3. Nc3 {[%emt 0:00:14]} g6 {[%emt 0:00:51]} 4. g3 {[%emt 0:00:12]} Bg7 {[%emt 0:00:07]} 5. Bg2 {[%emt 0:00:08]} d6 {[%emt 0:01:55]} 6. Nge2 {[%emt 0:00:42]} e6 {[%emt 0:06:03]} 7. d3 {[%emt 0:00:26]} Nge7 {[%emt 0:00:14]} 8. Be3 {[%emt 0:01:41]} Nd4 {[%emt 0:00:26]} 9. O-O {[%emt 0:01:40]} O-O {[%emt 0:00:26]} 10. Qd2 {[%emt 0:00:28]} Nec6 {[%emt 0:05:04]} 11. h3 {[%emt 0:06:59] A36: Symmetrical English vs ...g6: 4 Bg2 Bg7.} a6 {[%emt 0:02:41]} 12. f4 {[%emt 0:03:42]} Rb8 {[%emt 0:01:08] [#] Black is more active.} 13. e5 $146 {[%emt 0:02:25]} (13. Rae1 $15) ({Predecessor:} 13. g4 b5 14. Ng3 b4 15. Nce2 b3 16. f5 Nc2 17. Bh6 Nxa1 18. Bxg7 Kxg7 19. f6+ {0-1 (41) Urbanc,S (1646)-Cmor,N (2014) Slovenia 2017}) 13... dxe5 $17 {[%emt 0:00:51]} 14. Ne4 {[%emt 0:00:30]} b6 {[%emt 0:01:46]} 15. fxe5 {[%emt 0:00:31]} Nxe2+ {[%emt 0:10:58]} ({Inferior is} 15... Nxe5 16. Nxd4 cxd4 17. Bg5 $15) ({Black should try} 15... Bxe5 $19 16. Nxd4 Nxd4) 16. Qxe2 {[%emt 0:00:11]} Nxe5 {[%emt 0:00:10]} 17. Rad1 {[%emt 0:04:36]} f5 {[%emt 0:06:46]} 18. Ng5 {[%emt 0:16:46] [#]} Nf7 $1 {[%emt 0:10:44]} 19. Nxf7 {[%emt 0:05:25]} Rxf7 {[%emt 0:03:31][%cal Bf8f7,Bf7d7,Bd7d6][%mdl 32]} 20. Bf4 {[%emt 0:01:35]} e5 {[%emt 0:03:34]} 21. Be3 {[%emt 0:05:35]} (21. Bxe5 $17 Re7 22. d4 (22. Bd5+ Be6 $17) 22... cxd4 23. Bd5+ Be6 24. Bxg7 (24. Rxd4 $2 Qe8 $19) 24... Bxd5 25. Qf2 Bxc4 26. Bf6 Bxf1 27. Kxf1) 21... Bb7 $19 {[%emt 0:01:50]} 22. Kh2 {[%emt 0:03:56]} Bxg2 {[%emt 0:01:13]} 23. Kxg2 {[%emt 0:00:08]} Rd7 {[%emt 0:00:12]} 24. h4 {[%emt 0:01:32]} Rd6 {[%emt 0:01:06]} 25. Rd2 {[%emt 0:01:50]} (25. b4 {was called for.}) 25... Qd7 {[%emt 0:00:13]} 26. Rfd1 {[%emt 0:02:42]} Re8 {[%emt 0:00:38][%cal Of5f4]} 27. Qf3 {[%emt 0:02:51]} Qc6 {[%emt 0:01:57]} 28. Qxc6 {[%emt 0:01:12]} Rxc6 {[%emt 0:00:02]} 29. Kf2 {[%emt 0:01:51]} Rd6 {[%emt 0:04:20]} 30. a3 {[%emt 0:01:30]} a5 {[%emt 0:02:00]} 31. a4 {[%emt 0:00:52]} h5 {[%emt 0:00:29]} 32. Bg5 {[%emt 0:01:49]} Bf6 {[%emt 0:00:58]} 33. Bxf6 {[%emt 0:01:36]} Rxf6 {[%emt 0:00:02][%mdl 4096] Endgame KRR-KRR} 34. Re1 {[%emt 0:02:14]} Rd6 {[%emt 0:01:57]} 35. Re3 {[%emt 0:03:30]} Kf7 {[%emt 0:00:27]} 36. Rde2 {[%emt 0:01:58]} Kf6 {[%emt 0:00:11]} 37. Rd2 {[%emt 0:03:39]} e4 {[%emt 0:01:43] [#] Hoping for ...Red8.} 38. Ke2 $2 {[%emt 0:00:40]} (38. Rde2 Rd4 39. Re1) 38... Red8 {[%emt 0:00:47]} 39. b3 {[%emt 0:01:19]} g5 {[%emt 0:00:22] And now ...Rxd3 would win.} 40. Rd1 {[%emt 0:00:24]} gxh4 {[%emt 0:00:39] ( -> ...Rxd3)} 41. gxh4 {[%emt 0:00:06]} Ke5 {[%emt 0:00:21] aiming for ...Rxd3.} 42. Rd2 {[%emt 0:00:55]} Kf4 {[%emt 0:00:28] ...Rg6 is the strong threat.} 43. Rd1 {[%emt 0:00:44]} Rxd3 {[%emt 0:00:10]} 44. Rexd3 {[%emt 0:00:08]} Rxd3 {[%emt 0:00:08]} 45. Rxd3 {[%emt 0:00:14]} exd3+ {[%emt 0:00:11] Black mates.} 46. Kxd3 {[%emt 0:00:03]} Kf3 {[%emt 0:00:11]} 47. Kd2 {[%emt 0:00:19]} f4 {[%emt 0:00:08] Weighted Error Value: White=0.80/Black=0.25 (precise)} 0-1

[Event "IX Famalicao Open 2022"]
[Site "Vila Nova de Famalicao"]
[Date "2022.07.25"]
[Round "1.11"]
[White "Campora, Daniel H."]
[Black "Frolov, Ilya"]
[Result "1-0"]
[ECO "B21"]
[WhiteElo "2397"]
[BlackElo "1288"]
[Annotator "TA"]
[PlyCount "39"]
[EventDate "2022.07.25"]
[EventType "tourn"]
[EventCountry "POR"]
[SourceTitle "playchess.com"]
[Source "ChessBase"]
[SourceQuality "1"]
[TimeControl "5400+30"]

{[%evp 10,39,-2,-2,0,-9,20,12,22,22,127,133,210,196,190,102,210,120,114,110,167,55,103,105,100,100,106,106,200,200,2001,240]} 1. e4 c5 2. f4 Nc6 3. Nf3 e6 4. Bb5 d5 5. Bxc6+ bxc6 6. Nc3 Ba6 {B23: Closed Sicilian: Lines without g3.} 7. d3 Bd6 8. O-O Ne7 {[#] The position is equal.} 9. b3 $146 ({Predecessor:} 9. Qe1 Qb6 10. Kh1 h6 11. a3 O-O-O 12. Na4 Qb5 13. Nc3 Qb6 14. Na4 Qb5 15. Nc3 {1-0 (41) Povilaitis,T (1710)-Petersons,O (1752) Panevezys 2016}) 9... f6 (9... c4 $11) 10. e5 $16 fxe5 (10... Bc7 $16) 11. fxe5 $18 ({Worse is} 11. Nxe5 O-O $11) 11... Bc7 12. Na4 (12. Ng5 $18 Bxe5 13. Qe1 (13. Nxe6 Qd7 $14)) 12... Bb6 (12... O-O $16) 13. c4 ({White should play} 13. Ng5 $18 Nf5 14. Nxe6) 13... O-O $16 14. Ba3 Ng6 (14... Nf5 $16 {was necessary.}) 15. Qc2 (15. Bxc5 $18 Rf5 16. Rc1) 15... Nh4 {[#]} (15... dxc4 $14 {is more appropriate.} 16. dxc4 Nxe5) 16. Nxh4 $1 Qxh4 17. Qb2 Qg5 18. Qe2 {Inhibits Qe3+.} ({Don't go for} 18. Bxc5 $2 Bxc5+ 19. Nxc5 Qe3+ 20. Rf2 Qxc5 $19) 18... Bc7 (18... Rxf1+ $16 {keeps fighting.} 19. Rxf1 Rf8) 19. Nxc5 $18 Bc8 $2 {[#]} (19... Bb6 20. d4 Qe7) 20. Rxf8+ {Weighted Error Value: White=0.15 (very precise) /Black=0.52} 1-0

[Event "IX Famalicao Open 2022"]
[Site "Vila Nova de Famalicao"]
[Date "2022.07.25"]
[Round "1.12"]
[White "Santos, Joao Artur Almeida"]
[Black "Dias, Paulo"]
[Result "0-1"]
[ECO "C58"]
[WhiteElo "1954"]
[BlackElo "2348"]
[Annotator "TA"]
[PlyCount "80"]
[EventDate "2022.07.25"]
[EventType "tourn"]
[EventCountry "POR"]
[SourceTitle "playchess.com"]
[Source "ChessBase"]
[SourceQuality "1"]
[TimeControl "5400+30"]

{[%evp 14,80,25,22,80,52,66,-37,-24,-33,-45,-64,24,-14,37,-77,-74,-107,-22,-34,-63,-70,-50,-32,-16,-38,161,163,141,120,126,-6,-9,-54,-40,-41,-48,-44,-41,-145,-132,-207,-198,-268,-159,-167,-177,-371,-389,-386,-383,-454,-473,-522,-532,-883,-896,-894,-891,-887,-892,-881,-872,-862,-860,-811,-802,-29977,-29978]} 1. e4 e5 2. Nf3 Nc6 3. Bc4 Nf6 4. Ng5 d5 5. exd5 Na5 6. Bb5+ c6 7. dxc6 bxc6 8. Bd3 {is now more promising than 8.Be2.} Be7 {C58: Two Knights: 4 Ng5 d5 5 exd5 Na5 sidelines.} (8... Nd5 $11 9. Nf3 (9. Qh5 $2 g6 $17) 9... Nf4) 9. Nc3 Nd5 10. Nge4 (10. Nf3 $1 $14) 10... Nf4 $15 {[%csl LRd3,LRg2][%mdl 1024] Black has compensation. Black is slightly better.} 11. Bf1 {[%cal Od2d4] [#]} f5 $146 ({Predecessor:} 11... O-O 12. d3 f5 13. Ng3 Bd6 14. Qf3 Bb7 15. Bd2 c5 16. Qd1 Nxg2+ 17. Bxg2 Bxg2 18. Rg1 Bh3 19. Qe2 Nc6 20. Qf3 e4 21. dxe4 Ne5 22. Qe2 Bg4 23. f4 {0-1 (23) Tomcikova,Z (1654)-Yurovskikh,Y (1842) Prague 2016}) 12. Ng3 {[%cal Od2d4]} (12. g3 $2 Nd5 13. Bg2 fxe4 14. Nxe4 O-O $17) 12... Bc5 (12... O-O $1 $15) 13. d3 {[%cal Od3d4]} Qb6 (13... Qd4 $2 14. Be3 Qd6 15. Nge4 $1 {[%mdl 512]} fxe4 16. Nxe4 Bb4+ 17. c3 $18) ({Better is} 13... O-O $11) 14. Qf3 (14. Bxf4 $2 Bxf2+ 15. Kd2 exf4 $19) (14. Qd2 $14 Be7 15. Nge2) 14... O-O $17 15. Be2 Ne6 ({Black should try} 15... g5 $1 $17 {[%cal Rg5g4] White must now prevent ...g4.} 16. h3 Bd4) 16. O-O $11 ({But not} 16. Nxf5 $2 Nd4 17. Nxd4 exd4 $19) 16... Nd4 {[%csl LRc2,LRf3]} 17. Qh5 Nxc2 18. Rb1 {Hoping for Na4.} Nb7 {[%cal Ba5b7,Bb7c5,Bc5d3][%mdl 32]} 19. Na4 Qa6 (19... Qb4 $15 {stays ahead.}) 20. Nxc5 $18 Nxc5 21. d4 Nd3 (21... Qxa2 $2 22. dxc5 $1 Qxb1 23. Bc4+ Kh8 24. Qg5 $18) 22. Rd1 (22. dxe5 $16 {Threatens to win with Rd1.} Nd4 23. Bxd3 Qxd3 24. Be3) 22... e4 $11 23. Qg5 {And now Nh5 would win.} Nxd4 24. Bxd3 exd3 25. Nh5 {[%csl Gh5][%cal Rg5g7]} Ne6 {Active counter play!} 26. Qe3 (26. Qg3 $15) 26... f4 $1 $40 {[%mdl 128] Black is out for blood.} 27. Qe5 {[#]} (27. Qe4 $17) 27... Qb5 $1 $19 ({Worse is} 27... Qxa2 28. Bxf4 Rd8 29. Qc3 $17) 28. Bxf4 {[#]} (28. Qxb5 $142 cxb5 29. Rxd3) 28... Qxe5 (28... Rxf4 $1 $19 {[%mdl 512]} 29. Qxb5 cxb5 30. Nxf4 Nxf4) 29. Bxe5 $17 Rf5 $1 {[%csl LRe5,LRh5]} 30. Bxg7 (30. f4 {might work better.} Rxh5 31. Rxd3) 30... Rxh5 $19 ({Not} 30... Nxg7 31. Nxg7 Kxg7 32. Rxd3 $19) 31. Bc3 Nf4 32. h3 Rg5 {...Bxh3 is the strong threat.} 33. Bd2 Rxg2+ 34. Kf1 {[#]} Bxh3 $1 {( -> ...Rg6+)} 35. Bxf4 Rg4+ 36. Ke1 Rxf4 37. Rxd3 Re8+ 38. Kd2 Rxf2+ 39. Kc3 Bf5 40. Rd6 Bxb1 {Quite a comeback for Black.  Weighted Error Value: White=0.77/Black=0.32} 0-1

[Event "IX Famalicao Open 2022"]
[Site "Vila Nova de Famalicao"]
[Date "2022.07.25"]
[Round "2.1"]
[White "Perez Estevez, Sergio"]
[Black "Martinez Duany, Lelys Stanley"]
[Result "0-1"]
[ECO "C42"]
[WhiteElo "1765"]
[BlackElo "2497"]
[Annotator "TA"]
[PlyCount "72"]
[EventDate "2022.07.25"]
[EventType "tourn"]
[EventCountry "POR"]
[SourceTitle "playchess.com"]
[Source "ChessBase"]
[SourceQuality "1"]
[TimeControl "5400+30"]

{[%evp 17,72,22,25,0,44,29,83,79,74,65,62,9,11,-9,41,27,25,0,0,0,7,0,0,-15,-5,-8,-10,-54,-16,-18,-25,-47,0,0,0,0,2,0,0,0,0,0,19,-27,-42,-131,-25,-185,-191,-192,-138,-171,-175,-686,-683,-29997,-252]} 1. e4 Nf6 2. Nc3 e5 3. Nf3 d6 4. d4 exd4 5. Nxd4 Be7 6. Bc4 O-O 7. O-O a6 8. a4 Nc6 9. Nxc6 bxc6 10. h3 {C41: Philidor Defence.} Rb8 {[#]} 11. a5 $146 ({Predecessor:} 11. b3 Nd7 12. Bb2 Bf6 13. Qd2 Nc5 14. Rab1 Re8 15. Rfe1 g6 16. Qf4 Ne6 17. Qd2 Be5 {1-0 (38) Moreno Mateos,J (1888)-Leskovar,M (2373) Calvia 2006}) 11... Nd7 (11... Bb7 $11) 12. Qe2 $1 $16 {White is better.} Ra8 13. Be3 Bf6 14. Rfd1 (14. f4 $14) 14... Re8 $11 15. Bd3 (15. Qd2 {seems wilder.} Rb8 16. Rab1 Bxc3 17. Qxc3 Rxe4 18. Ba7) 15... g6 (15... Ne5 $11) 16. f4 {[%cal Oe4e5]} Bg7 17. Qf2 {[%cal Oe4e5]} Rb8 {[%cal Ba8b8,Bb8b4,Bb4a4][%mdl 32]} 18. Rab1 {[%cal Oe4e5]} Rb4 19. Qf3 Bb7 20. Na2 Ra4 (20... Rxb2 21. Rxb2 Bxb2 22. Rb1 $16) 21. Nc3 Rxa5 22. Bc1 {[%cal Oe4e5]} c5 (22... Bd4+ {is more complex.} 23. Kh2 Rh5 24. Be2 c5) 23. Bd2 Nb6 24. b3 {Inhibits c4.} f5 (24... Ra3 $15 {might be stronger.} 25. Bc1 Bxc3 $1 26. Bxa3 Bd4+ 27. Kh2 f5) 25. Qf1 fxe4 26. Nxe4 Ra3 ({But not} 26... Bxe4 27. Bxa5 Bd4+ 28. Kh2 $16) 27. Ng5 h6 $1 28. Nf3 (28. Bxg6 $2 hxg5 29. Bxe8 (29. fxg5 $2 Rf8 $19) 29... Qxe8 $19) 28... Qf6 $36 {[%mdl 2048] Black is pushing.} 29. Qf2 Bc8 30. Bc1 (30. Nh4 $142) 30... Ra2 31. g4 {[#] Prevents Bf5.} ({Better is} 31. Nh4 $1 $15) 31... Bb7 {Black is more active.} (31... Bd7 $1 $17 {Hoping for ...Qf7.} 32. Re1 Rxe1+ 33. Qxe1 Bb5) 32. g5 $2 {[#] This move loses the game for White.} (32. Bd2 $11) 32... hxg5 $1 $19 33. Nxg5 Qd4 (33... Qc3 $19 {And now ...Bd4 would win.} 34. Nf3 (34. Qh4 $2 Rxc2 35. Be3 Rxe3 $19) 34... Bxf3 35. Qxf3 Rxc2) 34. Qxd4 Bxd4+ 35. Kh2 $2 {[#]} (35. Kf1) 35... Rxc2+ $3 {[%mdl 512]} 36. Bxc2 {Threatens to win with Bd3.} (36. Bd2 Re3) 36... Re2+ {Weighted Error Value: White=0.64/Black=0.15 (very precise)} 0-1

[Event "IX Famalicao Open 2022"]
[Site "Vila Nova de Famalicao"]
[Date "2022.07.25"]
[Round "2.2"]
[White "Santos, Joao Artur Almeida"]
[Black "Aditya Mittal"]
[Result "0-1"]
[ECO "D43"]
[WhiteElo "1954"]
[BlackElo "2480"]
[Annotator "TA"]
[PlyCount "62"]
[EventDate "2022.07.25"]
[EventType "tourn"]
[EventCountry "POR"]
[SourceTitle "playchess.com"]
[Source "ChessBase"]
[SourceQuality "1"]
[TimeControl "5400+30"]

{[%evp 13,62,2,-14,-27,-20,-83,-38,-75,-41,-53,-41,-47,-11,-115,-115,-151,-141,-149,-146,-208,-197,-344,-342,-373,-382,-400,-391,-401,-396,-468,-472,-582,-589,-598,-593,-581,-555,-743,-716,-677,-556,-1101,-1095,-1029,-1041,-922,-827,-804,-791,-983,-897]} 1. d4 {[%emt 0:00:04]} Nf6 {[%emt 0:00:06]} 2. Nf3 {[%emt 0:00:07]} d5 {[%emt 0:00:10]} 3. c4 {[%emt 0:00:52]} c6 {[%emt 0:01:17]} 4. Nc3 {[%emt 0:01:37]} e6 {[%emt 0:00:06]} 5. g3 {[%emt 0:01:14]} dxc4 {[%emt 0:00:42]} 6. Bg2 {[%emt 0:00:44]} Nbd7 {[%emt 0:00:05]} 7. O-O {[%emt 0:00:39]} b5 {[%emt 0:00:58]} 8. Ng5 {[%emt 0:09:08] E01: Catalan: Early deviations.} Qb6 {[%emt 0:06:32]} 9. e4 {[%emt 0:05:00]} (9. b3 $11 {remains equal.}) 9... h6 $17 {[%emt 0:00:49]} 10. Nh3 {[%emt 0:03:41] [#] Black is slightly better.} Bb7 $146 {[%emt 0:02:38]} ({Predecessor:} 10... b4 11. Ne2 {1-0 (11) Raines,D (1105)-Petrov,I (2161) LSS email 2013}) 11. Be3 {[%emt 0:02:32]} c5 {[%emt 0:04:16]} 12. d5 {[%emt 0:01:14]} a6 {[%emt 0:09:31]} (12... O-O-O {seems wilder.} 13. b3 exd5 14. exd5 Ne5) 13. f4 {[%emt 0:02:04] [#]} (13. Nf4 $11) 13... exd5 $1 {[%emt 0:03:02]} 14. Nxd5 {[%emt 0:00:58]} Nxd5 {[%emt 0:05:08]} 15. exd5 {[%emt 0:00:57]} Be7 {[%emt 0:00:16]} 16. a4 {[%emt 0:09:55]} (16. Rc1 $17) 16... O-O $19 {[%emt 0:02:32][%cal Bh8f8,Bf8e8,Be8e6][%mdl 32]} 17. d6 {[%emt 0:03:50]} (17. Nf2 $142) 17... Bf6 {[%emt 0:00:34]} 18. a5 {[%emt 0:00:49]} Qa7 {[%emt 0:00:10]} 19. Qc2 {[%emt 0:02:50]} Rfe8 {[%emt 0:00:42]} 20. Rfe1 {[%emt 0:04:31]} Re6 {[%emt 0:01:46]} 21. Rad1 {[%emt 0:03:00]} Rae8 {[%emt 0:00:28] Black is clearly winning.} 22. Qf2 {[%emt 0:01:47]} Bxg2 {[%emt 0:01:16]} 23. Kxg2 {[%emt 0:01:40]} Qa8+ {[%emt 0:00:14]} 24. Kg1 {[%emt 0:01:27]} Qc6 {[%emt 0:02:12]} 25. Qd2 {[%emt 0:05:33]} Qf3 {[%emt 0:00:49][%cal Re6e3]} 26. Bf2 {[%emt 0:00:44]} Re2 {[%emt 0:01:41]} 27. Rxe2 {[%emt 0:01:29]} Rxe2 {[%emt 0:00:08]} 28. Qd5 {[%emt 0:00:16]} Qxd5 {[%emt 0:00:33]} 29. Rxd5 {[%emt 0:00:10]} Bxb2 {[%emt 0:00:08] [#] Strongly threatening ...c3.} 30. Kf1 {[%emt 0:00:19]} Re4 {[%emt 0:01:04] aiming for ...c3.} 31. Bxc5 {[%emt 0:00:21]} c3 {[%emt 0:00:14] White did not feel at home in the position after the opening.  Weighted Error Value: White=0.77/Black=0.13 (very precise)} 0-1

[Event "IX Famalicao Open 2022"]
[Site "Vila Nova de Famalicao"]
[Date "2022.07.25"]
[Round "2.4"]
[White "Jibuti, Nata"]
[Black "Das, Sayantan"]
[Result "0-1"]
[ECO "A48"]
[WhiteElo "1639"]
[BlackElo "2449"]
[Annotator "TA"]
[PlyCount "100"]
[EventDate "2022.07.25"]
[EventType "tourn"]
[EventCountry "POR"]
[SourceTitle "playchess.com"]
[Source "ChessBase"]
[SourceQuality "1"]
[TimeControl "5400+30"]

{[%evp 10,100,3,-16,-8,-10,-15,-27,7,0,1,0,0,0,0,-20,25,-6,13,10,32,25,44,27,44,35,34,25,35,15,8,13,21,0,0,-13,0,-18,-14,-18,-16,-18,-11,-50,-45,-43,-52,-63,-66,-55,-22,-24,-6,-8,-7,-6,-13,-2,-6,-89,-102,-122,-104,-115,-115,-114,-120,-123,-147,-221,-221,-214,-213,-202,-179,-338,-317,-1473,-1335,-5569,-5265,-29980,-29981,-29983,-29984,-29987,-29988,-29988,-29989,-29989,-29990,-29990,-29990]} 1. d4 Nf6 2. Nf3 g6 3. Bf4 Bg7 4. Nbd2 O-O 5. e4 d6 6. Bd3 Nc6 {[%cal Oc6d4] A48: 1 d4 Nf6 2 Nf3 g6: Torre, London and Colle Systems.} 7. c3 e5 8. Be3 {[#]} Qe8 $146 {Black has an edge.} ({Predecessor:} 8... exd4 9. cxd4 d5 10. e5 Ng4 11. O-O Nxe3 12. fxe3 f6 13. exf6 Bxf6 14. a3 Ne7 {0-1 (31) Pereira,T (1775)-Perdomo,L (2468) Taubate 2020}) 9. dxe5 Nxe5 10. Nxe5 Qxe5 11. f3 Bd7 12. O-O Qe7 (12... Nd5 $5 {[%cal Rd5e3]} 13. Bd4 Qg5 14. exd5 Bxd4+ 15. cxd4 Qe3+ 16. Rf2 Qxd3 $11) 13. Qb3 Bc6 14. Rfe1 Nh5 15. Bf1 Rad8 16. Rad1 ({Stronger than} 16. Bxa7 b6 17. Qc4 Bb7 $17) 16... a6 17. Qc2 Rfe8 18. Bd4 Nf4 19. Bxg7 Kxg7 20. Nb3 h5 {[%cal Bh7h5,Bh5h4][%mdl 32]} 21. Nd4 (21. g3 $5 {[%cal Rg3f4]} Qg5 22. Qd2 $11) 21... Qg5 22. Qd2 {[#] Black must now prevent g3.} h4 {Against g3} 23. Kh1 Bd7 24. Ne2 Ne6 25. Qxg5 Nxg5 26. Ng1 Re7 27. h3 Rde8 28. Ne2 f5 29. exf5 gxf5 30. Kg1 Bb5 {[%cal Rb5e2]} 31. Kf2 Bxe2 (31... Kf6 {with more complications.} 32. a4 Bxe2 33. Rxe2 Rxe2+ 34. Bxe2 Ne6) 32. Rxe2 Rxe2+ 33. Bxe2 $11 {[%mdl 4096] Endgame KRB-KRN} Ne6 {Prevents Rd4.} 34. Re1 (34. a4 $11) 34... Nf4 $17 {Black keeps a firm grip on the game.} 35. Bf1 Rxe1 {Black is more active.} 36. Kxe1 {KB-KN} Kf6 37. Kf2 {[#]} Nh5 $1 {Prevents g3.} 38. Bd3 Ke5 39. Bf1 (39. a4 $17 {was necessary.}) 39... d5 $19 40. Bd3 c5 41. Be2 d4 {aiming for ...dxc3.} 42. cxd4+ (42. a4) 42... Kxd4 {Hoping for ...b5.} 43. Bf1 (43. Bd1 c4 44. Bc2) 43... Ng3 44. Be2 Nxe2 45. Kxe2 {KP-KP} f4 {Black mates.} 46. Kd2 c4 47. a4 b5 48. axb5 axb5 {[%cal Ba6b5,Bb5b4,Bb4b3][%mdl 32]} 49. Kc2 b4 50. Kd2 b3 {Weighted Error Value: White=0.58/Black=0.05 (flawless)} 0-1

[Event "IX Famalicao Open 2022"]
[Site "Vila Nova de Famalicao"]
[Date "2022.07.25"]
[Round "2.5"]
[White "Abdisalimov, Abdimalik"]
[Black "Afonso, Joao Pedro"]
[Result "1-0"]
[ECO "E11"]
[WhiteElo "2437"]
[BlackElo "1653"]
[Annotator "TA"]
[PlyCount "51"]
[EventDate "2022.07.25"]
[EventType "tourn"]
[EventCountry "POR"]
[SourceTitle "playchess.com"]
[Source "ChessBase"]
[SourceQuality "1"]
[TimeControl "5400+30"]

{[%evp 19,51,21,19,19,25,22,25,0,0,-8,-10,-17,0,0,0,-8,3,-17,0,-25,0,0,0,0,0,-100,39,32,286,285,280,251,272,293]} 1. d4 {[%emt 0:00:01]} Nf6 {[%emt 0:00:26]} 2. c4 {[%emt 0:00:21]} e6 {[%emt 0:00:10]} 3. Nf3 Bb4+ {[%emt 0:00:10]} 4. Nbd2 {[%emt 0:00:09]} O-O {[%emt 0:01:15]} 5. a3 {[%emt 0:00:03]} Bxd2+ {[%emt 0:00:58]} 6. Qxd2 {[%emt 0:00:07]} b6 {[%emt 0:00:35]} 7. g3 {[%emt 0:00:03]} Bb7 {[%emt 0:00:23]} 8. Bg2 {[%emt 0:00:07]} d6 {[%emt 0:01:50]} 9. O-O {[%emt 0:00:07]} Nbd7 {[%emt 0:00:21]} 10. b3 {[%emt 0:00:06] was the old line (10.b4).} Qe7 {[%emt 0:01:09]} 11. Bb2 {[%emt 0:00:08] E11: Bogo-Indian.} Ne4 {[%emt 0:04:11]} 12. Qc2 {[%emt 0:00:06][%cal Od4d5]} f5 {[%emt 0:03:42] [#]} 13. Ne1 $146 {[%emt 0:00:36] White has an edge.} ({Predecessor:} 13. Rad1 Rae8 14. d5 exd5 15. cxd5 Ndf6 16. Qc4 Qf7 17. Bxf6 Qxf6 18. Rd4 Re7 19. b4 {1-0 (31) Timman,J (2565)-Guliev,L (2434) Baku 2008}) 13... c5 {[%emt 0:32:20]} 14. Nd3 {[%emt 0:02:44]} cxd4 {[%emt 0:05:18] White should prevent ...e5.} 15. Bxd4 {[%emt 0:00:26]} e5 {[%emt 0:00:46]} 16. Bb2 {[%emt 0:00:06]} Rac8 {[%emt 0:01:04]} 17. f3 {[%emt 0:01:52]} Nef6 {[%emt 0:02:16]} 18. Bh3 {[%emt 0:06:20]} f4 {[%emt 0:09:19]} 19. Qd2 {[%emt 0:04:37]} fxg3 {[%emt 0:01:42]} (19... Nh5 $5 {[%cal Rf4g3]}) 20. hxg3 {[%emt 0:00:07]} Nh5 {[%emt 0:02:54]} 21. Kh2 $1 {[%emt 0:01:36]} e4 {[%emt 0:05:07]} 22. Ne1 {[%emt 0:04:42]} (22. Nb4 $11 {remains equal.} Rc5 23. fxe4) 22... e3 {[%emt 0:14:05]} (22... Rce8 $17 {...Nc5 is the strong threat.} 23. Rd1 Nc5) 23. Qd4 $14 {[%emt 0:00:47]} Ne5 {[%emt 0:02:52][%mdl 8192] [#] Against Qg4} 24. Bxc8 $18 {[%emt 0:02:45] White has a decisive advantage.} Bxc8 {[%emt 0:00:10]} 25. Ng2 {[%emt 0:00:27]} Qd7 {[%emt 0:05:35]} 26. g4 {[%emt 0:00:18] Weighted Error Value: White=0.19 (very precise) /Black=0.49} 1-0